bitfinex/quotes_BTCUSD_20240918
["timestamp","ask_amount","ask_price","bid_price","bid_amount"]
[1726693531181,0.02679555,60410.0,60409.0,0.82769]
[1726693531433,0.001822,60410.0,60409.0,1.55721967]
[1726693531671,0.001822,60410.0,60409.0,2.34938362]
[1726693531914,0.001822,60410.0,60409.0,2.39219523]
[1726693532183,0.001822,60410.0,60409.0,2.4100163]
[1726693532413,0.001822,60410.0,60409.0,2.14991075]
[1726693532648,0.000822,60410.0,60409.0,2.17424576]
[1726693532863,0.001822,60410.0,60409.0,2.17424576]
[1726693533100,0.001822,60410.0,60409.0,2.15916671]
[1726693533337,0.001822,60410.0,60409.0,2.12916671]
[1726693533588,0.002822,60410.0,60409.0,2.11316671]
[1726693533997,0.002822,60410.0,60409.0,2.06449705]
[1726693534416,0.002822,60410.0,60409.0,2.06431534]
[1726693534908,0.002822,60410.0,60409.0,2.09431534]
[1726693535115,0.002822,60410.0,60409.0,2.15475005]
[1726693535347,0.002822,60410.0,60409.0,2.12631556]
[1726693535568,0.002822,60410.0,60409.0,2.17498522]
[1726693536001,0.002822,60410.0,60409.0,2.11498522]
[1726693536242,0.002822,60410.0,60409.0,2.12631556]
[1726693536454,0.002822,60410.0,60409.0,2.12638853]
[1726693536671,0.002822,60410.0,60409.0,2.12438853]
[1726693536893,0.002822,60410.0,60409.0,2.12638853]
[1726693537108,0.002822,60410.0,60409.0,2.10608039]
[1726693540246,0.002822,60410.0,60409.0,2.10808039]
[1726693543746,0.002822,60410.0,60409.0,1.93068039]
[1726693547208,0.002822,60410.0,60409.0,1.87068039]
[1726693547429,0.002822,60410.0,60409.0,1.93068039]
[1726693548767,0.002822,60410.0,60409.0,1.92868039]
[1726693550117,0.002822,60410.0,60409.0,1.93068039]
[1726693553869,0.002822,60410.0,60409.0,1.87068039]
[1726693554099,0.002822,60410.0,60409.0,1.93068039]
[1726693554519,0.002822,60410.0,60409.0,1.92868039]
[1726693554968,0.002822,60410.0,60409.0,1.86868039]
[1726693555187,0.002822,60410.0,60409.0,1.94940807]
[1726693555632,0.002822,60410.0,60409.0,1.92868039]
[1726693555863,0.002822,60410.0,60409.0,1.94940812]
[1726693557647,0.002822,60410.0,60409.0,1.96776098]
[1726693557867,0.002822,60410.0,60409.0,1.96775419]
[1726693558095,0.002822,60410.0,60409.0,1.94702646]
[1726693558533,0.002822,60410.0,60409.0,1.92868039]
[1726693558791,0.002822,60410.0,60409.0,1.94702739]
[1726693559029,0.002822,60410.0,60409.0,1.96775516]
[1726693560668,0.000822,60420.0,60419.0,1.281573]
[1726693560894,0.000822,60420.0,60419.0,1.56980667]
[1726693561130,0.000822,60420.0,60419.0,1.90841507]
[1726693561383,0.000822,60420.0,60419.0,1.92673]
[1726693561603,0.000822,60420.0,60419.0,2.257751]
[1726693562088,0.000822,60420.0,60419.0,2.30629896]
[1726693562326,0.000822,60420.0,60419.0,2.30627498]
[1726693562552,0.001822,60420.0,60419.0,2.34957888]
[1726693563223,0.000822,60420.0,60419.0,2.2870549]
[1726693563437,0.000822,60420.0,60419.0,2.33557888]
[1726693563658,0.000822,60420.0,60419.0,2.28796005]
[1726693563899,0.000822,60420.0,60419.0,2.33552417]
[1726693564115,0.000822,60420.0,60419.0,2.28699196]
[1726693564588,0.000822,60420.0,60419.0,2.31037283]
[1726693564802,0.000822,60420.0,60419.0,2.29637283]
[1726693565260,0.000822,60420.0,60419.0,2.31037283]
[1726693565486,0.02595976,60427.0,60426.0,1.737603]
[1726693565707,0.24831354,60431.0,60430.0,0.992582]
[1726693565931,0.24831354,60431.0,60430.0,1.84055767]
[1726693566153,0.000822,60436.0,60434.0,0.960527]
[1726693566372,0.000822,60436.0,60434.0,1.47751967]
[1726693566826,0.000822,60436.0,60434.0,1.48504095]
[1726693567265,0.02678004,60435.0,60434.0,1.48504095]
[1726693568445,0.02678004,60435.0,60434.0,1.49904095]
[1726693568881,0.02678004,60435.0,60434.0,1.85997995]
[1726693570220,0.02678004,60435.0,60434.0,1.49904095]
[1726693570688,0.02678004,60435.0,60434.0,1.59184095]
[1726693570929,0.02678004,60435.0,60434.0,1.92277995]
[1726693571137,0.02678004,60435.0,60434.0,1.95277995]
[1726693571359,0.02678004,60435.0,60434.0,1.95477995]
[1726693571796,0.02678004,60435.0,60434.0,1.95277995]
[1726693572015,0.02678004,60435.0,60434.0,1.96422414]
[1726693572512,0.000822,60435.0,60434.0,1.96422414]
[1726693573158,0.000822,60435.0,60434.0,1.95022414]
[1726693573607,0.000822,60435.0,60434.0,1.49448514]
[1726693573842,0.000822,60435.0,60434.0,1.52448514]
[1726693574061,0.000822,60435.0,60434.0,1.85542414]
[1726693574818,0.000822,60435.0,60434.0,1.86942414]
[1726693575036,0.000822,60435.0,60434.0,1.85542414]
[1726693575255,0.000822,60435.0,60434.0,1.86942414]
[1726693575477,0.000822,60435.0,60434.0,1.87142414]
[1726693576203,0.000822,60435.0,60434.0,1.85742414]
[1726693576417,0.000822,60435.0,60434.0,1.87142414]
[1726693576637,0.000822,60435.0,60434.0,1.85742414]
[1726693576866,0.000822,60435.0,60434.0,1.85542414]
[1726693577519,0.000822,60435.0,60434.0,1.85742414]
[1726693577954,0.000822,60435.0,60434.0,1.85542414]
[1726693578651,0.000822,60435.0,60434.0,1.86942414]
[1726693581814,0.000822,60435.0,60434.0,1.92942414]
[1726693582257,0.000822,60435.0,60434.0,1.93142414]
[1726693584130,0.000822,60435.0,60434.0,1.92942414]
[1726693586157,0.000822,60435.0,60434.0,1.93142414]
[1726693586384,0.000822,60435.0,60434.0,1.94951875]
[1726693587266,0.000822,60435.0,60434.0,1.94751875]
[1726693587973,0.000822,60435.0,60434.0,1.92942414]
[1726693588218,0.000822,60435.0,60434.0,1.88753371]
[1726693588453,0.000822,60435.0,60434.0,1.94753318]
[1726693588724,0.000822,60435.0,60434.0,2.03933318]
[1726693588941,0.000822,60435.0,60434.0,2.04133318]
[1726693589662,0.000822,60435.0,60434.0,2.03933318]
[1726693590884,0.0039339,60437.0,60436.0,0.12518]
[1726693591182,0.0942192,60452.0,60448.0,0.34258]
[1726693591183,0.24831354,60451.0,60448.0,0.34258]
[1726693591451,0.24831354,60451.0,60448.0,0.50763367]
[1726693591950,0.24831354,60451.0,60448.0,0.51508214]
[1726693592199,0.0031192,60452.0,60448.0,1.34023714]
[1726693592682,0.0031192,60452.0,60448.0,1.35423714]
[1726693592933,0.0031192,60452.0,60448.0,1.49869914]
[1726693593190,0.0031192,60452.0,60448.0,1.47569914]
[1726693594126,0.0031192,60452.0,60448.0,1.14483714]
[1726693594362,0.0031192,60452.0,60448.0,1.16783714]
[1726693594616,0.02595293,60451.0,60448.0,1.16783714]
[1726693595335,0.0031192,60452.0,60448.0,1.16783714]
[1726693595811,0.0031192,60452.0,60448.0,1.00478347]
[1726693596035,0.00087,60449.0,60448.0,1.00478347]
[1726693597011,0.09807,60449.0,60448.0,0.90478347]
[1726693597236,0.09807,60449.0,60448.0,0.51774147]
[1726693597462,0.09807,60449.0,60448.0,0.18687947]
[1726693597693,0.09807,60449.0,60448.0,0.02144847]
[1726693597924,0.09746006,60449.0,60448.0,0.02144847]
[1726693598587,0.09746006,60449.0,60448.0,0.00744847]
[1726693598811,0.09746006,60449.0,60448.0,0.02144847]
[1726693599028,0.09746006,60449.0,60448.0,0.014]
[1726693599250,0.09746006,60449.0,60448.0,0.02143604]
[1726693599690,0.59374506,60449.0,60448.0,0.02143604]
[1726693599918,0.59374506,60449.0,60448.0,0.014]
[1726693599919,0.92460206,60449.0,60448.0,0.014]
[1726693600193,0.165467,60435.0,60434.0,0.24831354]
[1726693600410,0.579101,60435.0,60434.0,0.24831354]
[1726693600625,0.579101,60435.0,60434.0,0.007441]
[1726693600862,0.165473,60433.0,60428.0,0.165485]
[1726693601120,0.413634,60435.0,60428.0,0.330972]
[1726693601121,0.0827,60435.0,60428.0,0.330972]
[1726693601353,0.24831354,60434.0,60421.0,0.364186]
[1726693601573,0.413634,60435.0,60425.0,0.165494]
[1726693601574,0.165485,60429.0,60425.0,0.165494]
[1726693601792,0.165485,60429.0,60423.0,0.99292541]
[1726693602015,0.165485,60429.0,60421.0,0.19623367]
[1726693602016,0.165493,60426.0,60421.0,0.03318]
[1726693602244,0.165489,60427.0,60422.0,0.165501]
[1726693602472,0.0922,60433.0,60422.0,0.165501]
[1726693602473,0.330967,60429.0,60422.0,0.165501]
[1726693602753,0.165495,60425.0,60420.0,0.16715]
[1726693603154,0.165495,60425.0,60421.0,0.165504]
[1726693603371,0.165489,60427.0,60423.0,0.165499]
[1726693603847,0.165489,60427.0,60421.0,0.165503]
[1726693604070,0.165489,60427.0,60425.0,0.01]
[1726693604292,0.0922,60428.0,60423.0,0.165498]
[1726693604531,0.257687,60428.0,60423.0,0.171498]
[1726693604782,0.001,60427.0,60423.0,0.171498]
[1726693605008,0.025966,60427.0,60424.0,0.165496]
[1726693605257,0.025966,60427.0,60421.0,0.331007]
[1726693605258,0.026966,60427.0,60423.0,0.165499]
[1726693605477,0.026966,60427.0,60425.0,0.00714866]
[1726693605693,0.026966,60427.0,60423.0,0.170499]
[1726693605914,0.192457,60427.0,60426.0,0.00714866]
[1726693606130,0.192457,60427.0,60423.0,0.005]
[1726693606131,0.165492,60426.0,60423.0,0.005]
[1726693606707,0.165492,60426.0,60424.0,0.00714866]
[1726693606800,0.165492,60426.0,60424.0,0.0070676]
[1726693607043,0.025966,60427.0,60424.0,0.0070676]
[1726693607289,0.165494,60425.0,60424.0,0.0080676]
[1726693607523,0.025966,60427.0,60424.0,0.0070676]
[1726693607758,0.025966,60427.0,60424.0,0.001644]
[1726693608024,0.001,60426.0,60425.0,0.00714359]
[1726693608277,0.001,60426.0,60424.0,0.001644]
[1726693608525,0.001,60426.0,60424.0,0.002644]
[1726693608767,0.001,60426.0,60425.0,0.0081641]
[1726693609013,0.025966,60427.0,60425.0,0.0081641]
[1726693609310,0.025966,60427.0,60424.0,0.001644]
[1726693609568,0.0922,60428.0,60426.0,0.0081641]
[1726693609812,0.0922,60428.0,60424.0,0.001644]
[1726693610051,0.0922,60428.0,60427.0,0.0081641]
[1726693610304,0.001,60427.0,60426.0,0.16549]
[1726693610763,0.0922,60428.0,60427.0,0.165488]
[1726693611003,0.0932,60428.0,60427.0,0.165488]
[1726693611252,0.0922,60428.0,60427.0,0.165488]
[1726693611499,0.25024162,60447.0,60431.0,0.165476]
[1726693611500,0.344567,60435.0,60431.0,0.165476]
[1726693611742,0.344567,60435.0,60427.0,0.0081641]
[1726693611743,0.165474,60433.0,60428.0,0.165485]
[1726693612203,0.165474,60433.0,60429.0,0.0081641]
[1726693612433,0.165474,60433.0,60429.0,0.1736461]
[1726693613178,0.165474,60433.0,60429.0,0.0081641]
[1726693613412,0.165474,60433.0,60429.0,0.1736451]
[1726693613624,0.02596414,60433.0,60431.0,0.004]
[1726693614020,0.02596414,60433.0,60430.0,0.165479]
[1726693614282,0.02696414,60433.0,60430.0,0.165479]
[1726693614536,0.02696414,60433.0,60431.0,0.0081641]
[1726693614803,0.001,60433.0,60431.0,0.0081641]
[1726693615036,0.002,60433.0,60431.0,0.0171641]
[1726693615270,0.16547,60434.0,60432.0,0.0081641]
[1726693615511,0.001,60433.0,60430.0,0.009]
[1726693616004,0.001,60433.0,60432.0,0.33095]
[1726693616237,0.001,60433.0,60432.0,1.01673808]
[1726693616463,0.02696393,60433.0,60432.0,1.34768808]
[1726693616684,0.02596393,60433.0,60432.0,1.44437867]
[1726693616909,0.02596393,60433.0,60432.0,1.77532867]
[1726693617166,0.001,60433.0,60432.0,1.77532867]
[1726693617393,0.00026006,60449.0,60448.0,0.827155]
[1726693617837,0.00026006,60449.0,60448.0,0.860335]
[1726693619522,0.00026006,60449.0,60448.0,1.191197]
[1726693620001,0.00026006,60449.0,60448.0,1.228197]
[1726693620427,0.00026006,60449.0,60448.0,1.23622184]
[1726693620671,0.00026006,60449.0,60448.0,0.90535984]
[1726693623888,0.00026006,60449.0,60448.0,1.07586047]
[1726693624245,0.00026006,60449.0,60448.0,1.40672247]
[1726693624452,0.00026006,60449.0,60448.0,1.07586047]
[1726693624814,0.00026006,60449.0,60448.0,1.40672247]
[1726693624953,0.00026006,60449.0,60448.0,1.66977614]
[1726693626206,0.00026006,60449.0,60448.0,1.65577614]
[1726693626918,0.00026006,60449.0,60448.0,1.66977614]
[1726693627607,0.00026006,60449.0,60448.0,1.65577614]
[1726693627839,0.00026006,60449.0,60448.0,1.66977614]
[1726693635281,0.00026006,60449.0,60448.0,1.33891414]
[1726693636147,0.00026006,60449.0,60448.0,1.66977614]
[1726693638144,0.00026006,60449.0,60448.0,1.65577614]
[1726693638595,0.00026006,60449.0,60448.0,0.04120484]
[1726693638820,0.00026006,60449.0,60448.0,0.50431784]
[1726693639046,0.00026006,60449.0,60448.0,0.67481847]
[1726693639700,0.00126006,60449.0,60448.0,0.68881847]
[1726693639946,0.00026006,60449.0,60448.0,0.67481847]
[1726693640182,0.00126006,60449.0,60448.0,0.68881847]
[1726693641271,0.00126006,60449.0,60448.0,1.53659614]
[1726693641523,0.00126006,60449.0,60448.0,1.63659614]
[1726693643299,0.00126006,60449.0,60448.0,1.65731127]
[1726693643728,0.00126006,60449.0,60448.0,1.63659614]
[1726693645664,0.00126006,60449.0,60448.0,1.96745814]
[1726693646522,0.00126006,60449.0,60448.0,1.98817327]
[1726693646733,0.00126006,60449.0,60448.0,1.96968372]
[1726693651277,0.00126006,60449.0,60448.0,1.99039933]
[1726693653143,0.00126006,60449.0,60448.0,1.96968372]
[1726693653827,0.00126006,60449.0,60448.0,1.99039936]
[1726693656571,0.00126006,60449.0,60448.0,1.96968372]
[1726693657433,0.00126006,60449.0,60448.0,1.99039964]
[1726693657916,0.00126006,60449.0,60448.0,1.93177676]
[1726693658139,0.00126006,60449.0,60448.0,1.98024576]
[1726693659659,0.00126006,60449.0,60448.0,1.93177676]
[1726693659877,0.00126006,60449.0,60448.0,1.98051394]
[1726693660090,0.00126006,60449.0,60448.0,1.64965307]
[1726693660304,0.00126006,60449.0,60448.0,1.60091476]
[1726693660512,0.00126006,60449.0,60448.0,1.62163063]
[1726693661562,0.00126006,60449.0,60448.0,1.60091471]
[1726693662441,0.00126006,60449.0,60448.0,1.89522912]
[1726693662677,0.00126006,60449.0,60448.0,1.82212166]
[1726693663597,0.00126006,60449.0,60448.0,1.89534281]
[1726693664271,0.00126006,60449.0,60448.0,1.87462694]
[1726693669623,0.00126006,60449.0,60448.0,1.895343]
[1726693674398,0.00126006,60449.0,60448.0,1.89539473]
[1726693675061,0.00126006,60449.0,60448.0,1.87467867]
[1726693675544,0.00126006,60449.0,60448.0,1.89539469]
[1726693676010,0.00126006,60449.0,60448.0,1.87467867]
[1726693676683,0.00126006,60449.0,60448.0,1.82219867]
[1726693677815,0.00126006,60449.0,60448.0,2.15306067]
[1726693678028,0.00126006,60449.0,60448.0,2.24906067]
[1726693678268,0.00126006,60449.0,60448.0,2.32593937]
[1726693678478,0.00126006,60449.0,60448.0,2.34665504]
[1726693678699,0.00126006,60449.0,60448.0,2.35609875]
[1726693678936,0.00126006,60449.0,60448.0,0.04496609]
[1726693678937,0.17696006,60449.0,60448.0,0.04496609]
[1726693679166,0.34238806,60449.0,60448.0,0.04496609]
[1726693679404,0.34238806,60449.0,60448.0,0.02425042]
[1726693679655,0.34238806,60449.0,60440.0,0.165452]
[1726693679656,0.34138806,60449.0,60440.0,0.165452]
[1726693679868,0.34238806,60449.0,60448.0,0.014]
[1726693680087,0.17696006,60449.0,60448.0,0.165431]
[1726693680312,0.17696006,60449.0,60446.0,0.11187775]
[1726693680532,0.17696006,60449.0,60448.0,0.01123188]
[1726693680754,0.17596006,60449.0,60446.0,0.27731275]
[1726693680977,0.17596006,60449.0,60448.0,0.00923188]
[1726693681192,0.17596006,60449.0,60448.0,0.165431]
[1726693681406,0.17596006,60449.0,60448.0,0.17466288]
[1726693682045,0.17596006,60449.0,60448.0,0.00923188]
[1726693682255,0.34138806,60449.0,60448.0,0.00923188]
[1726693682499,0.165438,60446.0,60439.0,0.165455]
[1726693682717,0.17596006,60449.0,60443.0,0.165444]
[1726693682938,0.17596006,60449.0,60448.0,0.009]
[1726693682939,0.17696006,60449.0,60448.0,0.009]
[1726693683159,0.17596006,60449.0,60443.0,0.165444]
[1726693683677,0.17596006,60449.0,60444.0,0.00923188]
[1726693684118,0.17596006,60449.0,60445.0,0.330876]
[1726693684345,0.17596006,60449.0,60444.0,0.51064351]
[1726693684571,0.00026006,60449.0,60448.0,0.519293]
[1726693684782,0.00026006,60449.0,60448.0,0.850155]
[1726693684997,0.00026006,60449.0,60448.0,0.85946527]
[1726693685213,0.00026006,60449.0,60448.0,0.52860327]
[1726693686300,0.00026006,60449.0,60448.0,0.53960327]
[1726693686509,0.00126006,60449.0,60448.0,0.53960327]
[1726693686733,0.00126006,60449.0,60448.0,0.02031027]
[1726693686951,0.99890206,60449.0,60448.0,0.02031027]
[1726693687167,0.165469,60434.0,60433.0,0.470744]
[1726693687415,0.589308,60434.0,60433.0,0.001644]
[1726693687871,0.920247,60434.0,60433.0,0.001644]
[1726693688086,0.589308,60434.0,60433.0,0.001644]
[1726693688957,0.28433156,60434.0,60433.0,0.001644]
[1726693689172,0.258369,60434.0,60433.0,0.001644]
[1726693689621,0.259369,60434.0,60433.0,0.010644]
[1726693691876,0.001,60434.0,60433.0,0.010644]
[1726693692098,0.001,60434.0,60433.0,0.507061]
[1726693692954,0.02696144,60434.0,60433.0,0.507061]
[1726693693608,0.001,60434.0,60433.0,0.507061]
[1726693693817,0.001,60434.0,60433.0,0.530061]
[1726693694899,0.001,60434.0,60433.0,0.53858519]
[1726693695194,0.001,60434.0,60433.0,0.04216819]
[1726693696958,0.165461,60438.0,60433.0,0.03316819]
[1726693697165,0.330913,60439.0,60433.0,0.20863919]
[1726693697166,0.001,60434.0,60433.0,0.20863919]
[1726693698032,0.02696221,60434.0,60433.0,0.20863919]
[1726693698491,0.02596221,60434.0,60433.0,0.19863919]
[1726693698706,0.02696221,60434.0,60433.0,0.20963919]
[1726693698919,0.02696221,60434.0,60433.0,0.03316819]
[1726693699394,0.02696221,60434.0,60433.0,0.04316819]
[1726693699606,0.02696221,60434.0,60433.0,0.20864019]
[1726693700042,0.02596221,60434.0,60433.0,0.19864019]
[1726693700897,0.02596221,60434.0,60433.0,0.20964019]
[1726693701112,0.02596221,60434.0,60433.0,0.04416819]
[1726693702200,0.02596221,60434.0,60433.0,0.03316819]
[1726693702410,0.02596221,60434.0,60433.0,0.20864019]
[1726693702641,0.02696221,60434.0,60433.0,0.20864019]
[1726693702897,0.02696221,60434.0,60433.0,0.19864019]
[1726693703072,0.02696221,60434.0,60433.0,0.20664019]
[1726693703073,0.02796221,60434.0,60433.0,0.20664019]
[1726693703314,0.02696221,60434.0,60433.0,0.19864019]
[1726693703745,0.02796221,60434.0,60433.0,0.20864019]
[1726693703926,0.02596221,60434.0,60433.0,0.19864019]
[1726693704161,0.02696221,60434.0,60433.0,0.20664019]
[1726693705446,0.02596221,60434.0,60433.0,0.19864019]
[1726693705932,0.02696221,60434.0,60433.0,0.20864019]
[1726693706179,0.02596221,60434.0,60433.0,0.19864019]
[1726693706407,0.02696221,60434.0,60433.0,0.20664019]
[1726693707376,0.001,60434.0,60433.0,1.49901831]
[1726693707596,0.001,60434.0,60433.0,1.49770886]
[1726693707823,0.24846677,60449.0,60448.0,1.02068563]
[1726693708055,0.24846677,60449.0,60448.0,1.1837393]
[1726693708274,0.24846677,60449.0,60448.0,1.19230783]
[1726693708490,0.00026006,60449.0,60448.0,1.19230783]
[1726693709627,0.00026006,60449.0,60448.0,1.20630783]
[1726693711659,0.00026006,60449.0,60448.0,1.19230783]
[1726693711881,0.00026006,60449.0,60448.0,1.20630783]
[1726693712107,0.00026006,60449.0,60448.0,0.54186153]
[1726693712351,0.00026006,60449.0,60448.0,0.18799953]
[1726693712584,0.00026006,60449.0,60448.0,0.02256853]
[1726693712801,0.00026006,60449.0,60448.0,0.18799953]
[1726693713267,0.00026006,60449.0,60448.0,0.50486153]
[1726693713483,0.00026006,60449.0,60448.0,0.51886153]
[1726693714844,0.00026006,60449.0,60448.0,0.83572353]
[1726693715123,0.00026006,60449.0,60448.0,0.84672353]
[1726693715363,0.00026006,60449.0,60448.0,0.83572353]
[1726693715957,0.00026006,60449.0,60448.0,0.84972353]
[1726693716183,0.00026006,60449.0,60448.0,0.83572353]
[1726693716417,0.00026006,60449.0,60448.0,1.01725416]
[1726693716631,0.09986006,60449.0,60448.0,0.00856853]
[1726693716850,0.26528806,60449.0,60444.0,0.16544]
[1726693717073,0.165434,60447.0,60438.0,0.330912]
[1726693717283,0.165438,60446.0,60445.0,0.0083216]
[1726693717506,0.165439,60445.0,60440.0,0.165452]
[1726693717733,0.99260509,60448.0,60435.0,0.03318]
[1726693717734,0.165443,60444.0,60435.0,0.03318]
[1726693717960,0.165443,60444.0,60441.0,0.0083216]
[1726693718196,0.165443,60444.0,60435.0,0.13318]
[1726693718442,0.165447,60443.0,60435.0,0.13318]
[1726693718678,0.330869,60447.0,60435.0,0.03318]
[1726693718888,0.16545,60442.0,60436.0,0.0083216]
[1726693719351,0.16545,60442.0,60441.0,0.007]
[1726693719588,0.16545,60442.0,60435.0,0.03318]
[1726693719815,0.165444,60444.0,60435.0,0.03318]
[1726693720047,0.165444,60444.0,60435.0,0.03718]
[1726693720503,0.330875,60446.0,60436.0,0.0083216]
[1726693720504,0.165449,60442.0,60436.0,0.0083216]
[1726693721253,0.02595979,60441.0,60436.0,0.0083216]
[1726693721472,0.02595979,60441.0,60437.0,0.16546]
[1726693721695,0.165448,60442.0,60437.0,0.16546]
[1726693721911,0.165448,60442.0,60441.0,0.01]
[1726693722146,0.165448,60442.0,60438.0,0.0083216]
[1726693722381,0.165448,60442.0,60437.0,0.16546]
[1726693722603,0.165448,60442.0,60439.0,0.0083216]
[1726693723050,0.165448,60442.0,60437.0,0.16546]
[1726693723243,0.19140765,60442.0,60441.0,0.01]
[1726693723945,0.02595965,60442.0,60441.0,0.01]
[1726693724214,0.165446,60443.0,60441.0,0.01]
[1726693724429,0.165446,60443.0,60441.0,0.01850698]
[1726693724653,0.165447,60442.0,60441.0,0.01]
[1726693725089,0.165447,60442.0,60437.0,0.165461]
[1726693725302,0.165447,60442.0,60437.0,0.175461]
[1726693725494,0.165447,60442.0,60438.0,0.0085078]
[1726693725739,0.165456,60439.0,60438.0,0.0085078]
[1726693725960,0.496368,60439.0,60438.0,0.0085078]
[1726693726180,0.330912,60439.0,60434.0,0.001644]
[1726693726406,0.330904,60441.0,60434.0,0.001644]
[1726693726407,0.330904,60441.0,60435.0,0.03318]
[1726693726629,0.49637,60439.0,60438.0,0.0085078]
[1726693726847,0.165461,60437.0,60435.0,0.03318]
[1726693727318,0.165461,60437.0,60436.0,0.0085078]
[1726693728260,0.165457,60439.0,60438.0,0.013]
[1726693728521,0.165459,60438.0,60436.0,0.0085078]
[1726693728775,0.165461,60437.0,60436.0,0.0225078]
[1726693728999,0.265161,60437.0,60436.0,0.014]
[1726693729213,0.596084,60437.0,60436.0,0.014]
[1726693729650,0.596084,60437.0,60434.0,0.001644]
[1726693729651,0.165465,60436.0,60434.0,0.001644]
[1726693731405,0.0997,60437.0,60434.0,0.001644]
[1726693731652,0.265163,60437.0,60434.0,0.001644]
[1726693732124,0.265163,60437.0,60434.0,0.011644]
[1726693732407,0.265163,60437.0,60434.0,0.001644]
[1726693732408,0.24818617,60436.0,60434.0,0.001644]
[1726693732629,0.902635,60435.0,60434.0,0.001644]
[1726693732848,1.233569,60435.0,60434.0,0.010644]
[1726693733524,0.902635,60435.0,60434.0,0.010644]
[1726693734606,0.902635,60435.0,60434.0,0.001644]
[1726693735084,0.902635,60435.0,60434.0,0.002644]
[1726693737944,1.02400014,60435.0,60434.0,0.002644]
[1726693738409,1.35493414,60435.0,60434.0,0.002644]
[1726693740553,1.35693414,60435.0,60434.0,0.002644]
[1726693740777,1.661903,60435.0,60434.0,0.002644]
[1726693740994,1.330969,60435.0,60434.0,0.002644]
[1726693741212,1.328969,60435.0,60434.0,0.001644]
[1726693741978,1.331969,60435.0,60434.0,0.001644]
[1726693742216,0.92267,60425.0,60424.0,0.001644]
[1726693742448,1.253658,60425.0,60424.0,0.001644]
[1726693743098,0.92267,60425.0,60424.0,0.001644]
[1726693743306,0.165492,60426.0,60424.0,0.001644]
[1726693743570,0.165494,60425.0,60424.0,0.001644]
[1726693744040,0.330958,60431.0,60424.0,0.001644]
[1726693744301,0.02596715,60432.0,60428.0,0.17053063]
[1726693744510,0.99291719,60438.0,60428.0,0.17053063]
[1726693744958,0.99291719,60438.0,60425.0,0.03318]
[1726693744959,0.99291719,60438.0,60433.0,0.17053063]
[1726693746273,0.000822,60439.0,60435.0,0.165465]
[1726693747365,0.02678363,60439.0,60435.0,0.165465]
[1726693747583,0.19223963,60439.0,60435.0,0.165465]
[1726693748293,0.19223963,60439.0,60435.0,0.168465]
[1726693748514,0.19223963,60439.0,60435.0,0.165465]
[1726693748976,0.19223963,60439.0,60435.0,0.168465]
[1726693749194,0.19223963,60439.0,60435.0,0.165465]
[1726693749646,0.19223963,60439.0,60433.0,0.167114]
[1726693750391,0.19223963,60439.0,60435.0,0.003]
[1726693751062,0.165459,60438.0,60435.0,0.003]
[1726693751282,0.165459,60438.0,60433.0,0.167115]
[1726693751704,0.165459,60438.0,60433.0,0.170115]
[1726693751978,0.165459,60438.0,60433.0,0.167115]
[1726693752187,0.165459,60438.0,60435.0,0.003]
[1726693753421,0.35769663,60439.0,60433.0,0.001644]
[1726693753624,0.165463,60437.0,60433.0,0.001644]
[1726693754042,0.165463,60437.0,60433.0,0.005644]
[1726693754253,0.165463,60437.0,60433.0,0.171115]
[1726693754463,0.35769663,60439.0,60433.0,0.171115]
[1726693754665,0.16546,60438.0,60433.0,0.171115]
[1726693754859,0.16546,60438.0,60433.0,0.167115]
[1726693755308,0.16546,60438.0,60434.0,0.00864466]
[1726693755509,0.16546,60438.0,60434.0,0.17411366]
[1726693757699,0.16546,60438.0,60434.0,0.17811366]
[1726693757909,0.16546,60438.0,60434.0,0.17411366]
[1726693758120,0.02678363,60439.0,60435.0,0.165465]
[1726693758332,0.19224063,60439.0,60435.0,0.165465]
[1726693758773,0.19224063,60439.0,60436.0,0.00864466]
[1726693759637,0.02678363,60439.0,60436.0,0.00864466]
[1726693759849,0.19224163,60439.0,60436.0,0.00864466]
[1726693760280,0.19224163,60439.0,60436.0,0.01264466]
[1726693760780,0.000822,60438.0,60436.0,0.01264466]
[1726693761204,0.000822,60438.0,60436.0,0.00864466]
[1726693761643,0.000822,60438.0,60436.0,0.01264466]
[1726693762721,0.000822,60438.0,60436.0,0.00864466]
[1726693763153,0.000822,60438.0,60436.0,0.007]
[1726693763401,0.000822,60438.0,60437.0,0.00864335]
[1726693763842,0.000822,60438.0,60437.0,0.83595035]
[1726693764681,0.000822,60438.0,60437.0,0.84895035]
[1726693765352,0.000822,60438.0,60437.0,1.55652702]
[1726693765569,0.000822,60438.0,60437.0,1.67170702]
[1726693765776,0.000822,60438.0,60437.0,1.98963002]
[1726693766006,0.000822,60438.0,60437.0,2.03850044]
[1726693766197,0.000822,60438.0,60437.0,2.05244189]
[1726693766497,0.000822,60438.0,60437.0,2.00363002]
[1726693766986,0.000822,60438.0,60437.0,1.98963002]
[1726693767438,0.000822,60438.0,60437.0,2.00363002]
[1726693767658,0.000822,60438.0,60437.0,1.98963002]
[1726693768100,0.000822,60438.0,60437.0,1.48665335]
[1726693769492,0.000822,60438.0,60437.0,1.50965335]
[1726693769982,0.000822,60438.0,60437.0,1.67270702]
[1726693771693,0.000822,60438.0,60437.0,2.00363002]
[1726693772416,0.000822,60438.0,60437.0,1.67270702]
[1726693774397,0.000822,60438.0,60437.0,2.00363002]
[1726693774833,0.000822,60438.0,60437.0,1.67270702]
[1726693776332,0.000822,60438.0,60437.0,1.70270702]
[1726693777234,0.000822,60438.0,60437.0,1.68870702]
[1726693777671,0.000822,60438.0,60437.0,1.67270702]
[1726693778345,0.000822,60438.0,60437.0,2.00363002]
[1726693778553,0.000822,60438.0,60437.0,1.67270702]
[1726693779203,0.000822,60438.0,60437.0,2.00363002]
[1726693780139,0.000822,60438.0,60437.0,1.67270702]
[1726693781429,0.000822,60438.0,60437.0,2.00363002]
[1726693781857,0.000822,60438.0,60437.0,1.67270702]
[1726693783463,0.02907482,60452.0,60444.0,0.20371063]
[1726693783464,0.0031192,60452.0,60444.0,0.20371063]
[1726693783675,0.99276112,60446.0,60445.0,0.023]
[1726693783886,0.0031192,60452.0,60445.0,0.03146553]
[1726693785394,0.0031192,60452.0,60451.0,0.165423]
[1726693786199,0.0031192,60452.0,60451.0,0.17388853]
[1726693786689,0.0031192,60452.0,60451.0,0.18188853]